bitfinex-derivatives/quotes_SOLF0:USTF0_20220102
["timestamp","ask_amount","ask_price","bid_price","bid_amount"]
[1641135402845,7.88780393,175.17,175.11,43.71034306]
[1641135403045,5.108,175.17,175.15,4.05306323]
[1641135403744,5.108,175.17,175.11,43.71034306]
[1641135403947,27.66479,175.18,175.14,4.04580858]
[1641135404745,27.66479,175.18,175.12,1.27106513]
[1641135405447,2.77471274,175.17,175.14,4.04577301]
[1641135406149,27.66479,175.18,175.12,1.27106513]
[1641135406349,27.66479,175.18,175.12,6.75506513]
[1641135406950,27.66479,175.18,175.14,4.04571298]
[1641135407552,4.04574728,175.16,175.11,59.24479]
[1641135408453,4.04574626,175.17,175.14,4.04574626]
[1641135409052,27.66479,175.18,175.12,1.27106294]
[1641135410055,4.04575756,175.17,175.14,4.04575756]
[1641135410854,31.0134,175.2,175.12,1.27106294]
[1641135411255,58.67819,175.2,175.12,1.27106294]
[1641135411956,58.67819,175.2,175.14,4.04576847]
[1641135412161,4.04576847,175.17,175.14,4.04576847]
[1641135412760,12.15952364,175.19,175.15,4.05300223]
[1641135413158,58.67819,175.2,175.15,4.05300223]
[1641135413559,58.67819,175.2,175.12,1.27106294]
[1641135413758,2.77966931,175.19,175.12,1.27106294]
[1641135414559,12.1590445,175.19,175.15,4.05301483]
[1641135415061,2.77966142,175.19,175.12,1.27106294]
[1641135415961,12.15897266,175.19,175.15,4.05299089]
[1641135417462,12.15897266,175.19,175.11,194.77562531]
[1641135417665,14.93861811,175.19,175.11,194.77562531]
[1641135417964,14.93861811,175.19,175.11,167.11083531]
[1641135418163,31.0134,175.2,175.15,4.05298175]
[1641135418565,58.67819,175.2,175.15,4.05298175]
[1641135418765,12.15937582,175.18,175.14,4.05312527]
[1641135419765,12.89466396,175.19,175.11,182.64528225]
[1641135420665,12.15957624,175.18,175.14,4.05319208]
[1641135421265,12.89466396,175.19,175.11,182.64528225]
[1641135422069,14.93895955,175.19,175.15,4.05305496]
[1641135423071,14.93895955,175.19,175.11,200.94762531]
[1641135423269,2.77979467,175.19,175.16,4.0527648]
[1641135423470,2.77979467,175.19,175.16,9.6427648]
[1641135423972,58.67819,175.2,175.16,5.59]
[1641135424173,58.67819,175.2,175.17,5.32590771]
[1641135424775,27.66479,175.2,175.17,5.32590771]
[1641135425374,27.66479,175.2,175.14,32.0936]
[1641135425675,2.77915508,175.19,175.14,32.0936]
[1641135426275,27.66479,175.2,175.18,4.05237918]
[1641135427276,27.66479,175.2,175.17,4.05244995]
[1641135427277,2.77905181,175.19,175.17,4.05244995]
[1641135427777,4.05246342,175.18,175.15,1.27339679]
[1641135428681,17.16913753,175.22,175.15,1.27339679]
[1641135428880,2.77907024,175.19,175.17,4.0524667]
[1641135429279,4.05246517,175.18,175.15,1.27339662]
[1641135430079,29.9611,175.21,175.17,4.052563]
[1641135430285,2.77917616,175.19,175.17,4.052563]
[1641135431082,29.9611,175.21,175.15,29.5546]
[1641135431284,2.77917872,175.2,175.16,1.27338684]
[1641135431781,29.9611,175.21,175.18,4.05238394]
[1641135431984,39.82194183,175.22,175.18,4.05238394]
[1641135432481,2.77897475,175.21,175.16,1.27340515]
[1641135433283,39.82194183,175.22,175.18,4.05237611]
[1641135433886,2.77892322,175.21,175.16,1.27340983]
[1641135434584,39.82194183,175.22,175.18,4.05233114]
[1641135435185,39.82194183,175.22,175.15,29.5546]
[1641135435386,2.77846527,175.21,175.2,4.05191673]
[1641135436187,27.66479,175.22,175.16,19.50094291]
[1641135436586,30.66479,175.22,175.16,19.50094291]
[1641135436789,2.77853612,175.21,175.2,4.05198114]
[1641135436988,7.46053612,175.21,175.2,4.05198114]
[1641135437490,4.682,175.21,175.16,13.40379452]
[1641135437690,14.79559997,175.21,175.16,5.32622415]
[1641135438388,14.79559997,175.21,175.15,29.5546]
[1641135438589,14.93776416,175.2,175.15,29.5546]
[1641135439189,14.93776416,175.2,175.16,5.3261573]
[1641135439989,12.1583468,175.2,175.15,29.5546]
[1641135440789,12.1583468,175.2,175.16,5.32615553]
[1641135441390,12.1583468,175.2,175.15,29.5546]
[1641135442093,2.77941736,175.21,175.18,4.05245641]
[1641135442892,2.77941736,175.21,175.16,1.27339749]
[1641135442893,39.8231368,175.22,175.15,29.5546]
[1641135443090,45.3821368,175.22,175.15,29.5546]
[1641135443691,14.93751629,175.21,175.17,4.05255693]
[1641135444294,39.82217772,175.22,175.18,4.05246257]
[1641135444992,2.77907028,175.21,175.16,1.27339646]
[1641135445792,4.05246807,175.18,175.17,4.05246807]
[1641135446193,9.62246807,175.18,175.17,4.05246807]
[1641135446393,5.57,175.18,175.15,29.5546]
[1641135446595,5.57,175.18,175.16,1.27338859]
[1641135447198,5.57,175.18,175.13,39.79513306]
[1641135447397,5.57,175.18,175.17,4.05255982]
[1641135447597,12.15738772,175.21,175.17,4.05255982]
[1641135447997,12.15738772,175.21,175.15,29.8555]
[1641135448197,46.08117772,175.22,175.15,29.8555]
[1641135448798,2.77894148,175.21,175.18,4.05234966]
[1641135449501,6.259,175.22,175.15,29.8555]
[1641135450000,2.7789813,175.21,175.18,4.05238585]
[1641135450601,18.41615755,175.22,175.15,29.8555]
[1641135451199,6.259,175.22,175.15,29.8555]
[1641135451399,59.54749,175.23,175.18,4.05232067]
[1641135451400,2.7789096,175.21,175.18,4.05232067]
[1641135452301,14.93570369,175.22,175.15,29.8555]
[1641135453000,31.8827,175.23,175.18,4.05227301]
[1641135453500,14.93598715,175.22,175.15,29.8555]
[1641135454303,39.82135588,175.23,175.19,4.05218863]
[1641135455301,2.77871327,175.22,175.19,5.238]
[1641135456101,32.34758149,175.27,175.21,27.66479]
[1641135456302,2.77834487,175.24,175.21,31.71659728]
[1641135457104,63.39258149,175.29,175.21,27.66479]
[1641135457407,12.15443579,175.26,175.22,5.32497388]
[1641135458104,12.88692458,175.28,175.21,27.66479]
[1641135458706,12.15443299,175.26,175.22,5.32497303]
[1641135459308,12.88692458,175.28,175.21,27.66479]
[1641135459910,12.88692458,175.28,175.22,4.05147537]
[1641135460108,12.15442612,175.26,175.22,5.32497097]
[1641135461006,12.88692458,175.28,175.21,27.66479]
[1641135462110,12.88692458,175.28,175.22,4.05147208]
[1641135462309,12.15441625,175.26,175.22,5.32496801]
[1641135462910,12.15441625,175.26,175.21,27.66479]
[1641135463409,12.88692458,175.28,175.21,27.66479]
[1641135463611,12.88692458,175.28,175.22,5.32487304]
[1641135464211,12.15487562,175.25,175.21,31.71641521]
[1641135464909,12.88692458,175.28,175.21,27.66479]
[1641135465111,12.15475335,175.26,175.22,5.32506914]
[1641135465710,5.77798332,175.28,175.21,27.66479]
[1641135465910,4.901,175.26,175.19,27.66479]
[1641135466511,2.77798332,175.25,175.19,27.66479]
[1641135467411,2.77798332,175.25,175.19,21.1814571]
[1641135468816,7.49398332,175.25,175.19,21.1814571]
[1641135469316,2.77798332,175.24,175.19,21.1814571]
[1641135470218,2.77798332,175.24,175.18,31.5449]
[1641135472824,12.15475335,175.22,175.18,35.57823448]
[1641135474823,12.15475335,175.23,175.19,5.30716319]
[1641135479431,4.05208223,175.2,175.19,5.30716319]
[1641135480131,9.96108223,175.2,175.17,1.27382871]
[1641135480833,4.05208223,175.19,175.15,19.50252395]
[1641135482833,4.05208223,175.18,175.15,1.27382871]
[1641135485137,4.05208223,175.19,175.15,19.50255717]
[1641135486744,4.05208223,175.19,175.15,22.50255717]
[1641135487146,4.05208223,175.19,175.15,19.50255717]
[1641135487343,4.05208223,175.2,175.16,13.40417177]
[1641135487943,4.05208223,175.2,175.15,1.27382871]
[1641135488144,8.53808223,175.2,175.15,1.27382871]
[1641135488344,8.53808223,175.2,175.17,27.66479]
[1641135488544,4.486,175.2,175.17,27.66479]
[1641135489645,4.486,175.2,175.18,1.27382871]
[1641135490546,4.05208223,175.21,175.18,1.27382871]
[1641135495152,4.05208223,175.19,175.15,19.50252427]
[1641135496658,4.05208223,175.19,175.15,13.40417177]
[1641135496857,2.77198802,175.2,175.18,4.05231608]
[1641135497356,2.77198802,175.2,175.19,4.05231608]
[1641135498058,14.92674137,175.24,175.19,4.05231608]
[1641135498959,12.15475335,175.23,175.19,4.05231608]
[1641135500359,14.92674137,175.24,175.2,4.05231608]
[1641135501260,14.92674137,175.24,175.19,4.05231608]
[1641135501762,2.77198802,175.24,175.2,4.05231608]
[1641135502662,2.77198802,175.24,175.21,4.05231608]
[1641135503363,12.15475335,175.23,175.19,4.05231608]
[1641135506167,14.92674137,175.24,175.2,4.05231608]
[1641135508270,12.15475335,175.23,175.19,4.05231608]
[1641135512072,12.15475335,175.23,175.18,4.05231608]
[1641135513176,4.04951152,175.2,175.19,4.05231608]
[1641135514677,14.92674137,175.24,175.19,4.05231608]
[1641135514879,12.15475335,175.23,175.18,4.05231608]
[1641135515579,4.04959284,175.2,175.19,4.05231608]
[1641135517987,4.04959284,175.2,175.16,19.5024528]
[1641135518686,7.04959284,175.2,175.16,19.5024528]
[1641135518887,4.04959284,175.2,175.16,19.5024528]
[1641135519086,4.04959284,175.2,175.16,13.40417177]
[1641135519388,4.04959284,175.17,175.15,1.27382871]
[1641135519788,10.91259284,175.17,175.15,1.27382871]
[1641135520694,4.04959284,175.16,175.13,1.27382871]
[1641135522296,4.04959284,175.15,175.13,1.27382871]
[1641135523199,4.04959284,175.14,175.1,1.27382871]
[1641135523998,4.04959284,175.13,175.1,1.27382871]
[1641135525901,2.77926456,175.16,175.1,19.50299893]
[1641135525902,4.04959284,175.14,175.1,19.50299893]
[1641135528103,30.9219,175.17,175.1,19.50299893]
[1641135528701,4.05337372,175.14,175.1,19.50299893]
[1641135529602,30.9219,175.17,175.1,19.50299893]
[1641135530204,12.15475335,175.18,175.1,22.50299893]
[1641135530403,4.05335704,175.14,175.11,3.0]
[1641135530607,4.05335704,175.14,175.12,3.0]
[1641135530803,4.05335704,175.14,175.11,6.008]
[1641135531010,4.05280803,175.17,175.13,12.13034306]
[1641135531304,4.05280803,175.17,175.14,27.66479]
[1641135531703,44.36635335,175.21,175.14,27.66479]
[1641135531903,41.36635335,175.21,175.14,27.66479]
[1641135532502,29.2116,175.21,175.14,27.66479]
[1641135532703,4.05246797,175.18,175.15,1.27382871]
[1641135533405,2.77866643,175.2,175.14,39.79513306]
[1641135533604,29.2116,175.21,175.14,39.79513306]
[1641135534704,2.77862097,175.2,175.18,4.05242665]
[1641135535206,14.9359907,175.22,175.16,1.27380568]
[1641135536005,27.66479,175.23,175.15,30.6609]
[1641135536210,4.407,175.22,175.18,4.05241574]
[1641135536605,4.407,175.22,175.15,30.6609]
[1641135536806,4.407,175.22,175.17,4.04875455]
[1641135536807,2.77610878,175.21,175.17,4.04875455]
[1641135537808,16.55326364,175.22,175.15,30.6609]
[1641135538009,12.14626364,175.22,175.15,30.6609]
[1641135538309,2.77609777,175.22,175.17,4.04874454]
[1641135539010,2.77609777,175.22,175.15,30.6609]
[1641135539910,14.92236141,175.22,175.17,4.04876689]
[1641135540512,14.92236141,175.22,175.15,30.6609]
[1641135541318,2.77609777,175.22,175.17,4.04875248]
[1641135541514,3.0,175.21,175.17,4.04875248]
[1641135541713,9.093,175.21,175.17,4.04875248]
[1641135541917,21.23926364,175.21,175.15,30.6609]
[1641135542616,2.77609777,175.2,175.17,4.05253249]
[1641135543216,3.0,175.21,175.15,30.6609]
[1641135543419,10.11166592,175.22,175.18,4.05244632]
[1641135543420,12.15733895,175.22,175.18,4.05244632]
[1641135543818,12.15733895,175.22,175.18,8.88644632]
[1641135544217,12.15733895,175.22,175.18,4.834]
[1641135544417,14.93563047,175.23,175.19,4.05212715]
[1641135545218,31.098,175.24,175.16,1.27383563]
[1641135546520,14.93444097,175.23,175.19,4.05207056]
[1641135547020,12.15621169,175.23,175.19,4.05207056]
[1641135547321,43.25389346,175.24,175.2,4.05196449]
[1641135548023,2.77812765,175.23,175.16,19.50242674]
[1641135548723,43.25389346,175.24,175.2,4.0519838]
[1641135549422,43.25389346,175.24,175.16,13.40417869]
[1641135549623,2.77282347,175.23,175.19,4.04424417]
[1641135550124,4.04423668,175.21,175.16,1.27383563]
[1641135550925,2.77291299,175.23,175.18,4.04432555]
[1641135551725,4.04422559,175.21,175.16,1.27383563]
[1641135552326,2.77279764,175.23,175.18,4.0442207]
[1641135553028,4.04423167,175.21,175.16,1.27383563]
[1641135553529,31.098,175.24,175.16,1.27383563]
[1641135553731,2.77281277,175.23,175.18,4.04423445]
[1641135554628,31.098,175.24,175.16,1.27383563]
[1641135554831,4.04419839,175.21,175.16,1.27383563]
[1641135555329,2.7728003,175.23,175.18,4.04422311]
[1641135556129,4.04420776,175.21,175.16,1.27383563]
[1641135556829,2.77276278,175.23,175.19,4.044189]
[1641135557628,4.04421608,175.21,175.18,4.04421608]
[1641135558330,2.7727988,175.23,175.16,1.27383563]
[1641135559034,4.04422944,175.21,175.19,4.04422944]
[1641135559635,2.77282038,175.23,175.16,1.27383563]
[1641135560235,4.04425171,175.21,175.19,4.04425171]
[1641135560935,2.77283143,175.23,175.16,1.27383563]
[1641135561434,31.098,175.24,175.16,1.27383563]
[1641135561635,4.04439583,175.21,175.18,4.04439583]
[1641135562338,4.04439856,175.2,175.16,1.27383563]
[1641135563136,70.91868346,175.24,175.18,4.04439848]
[1641135563636,4.04440077,175.2,175.16,1.27383563]
[1641135564339,70.91868346,175.24,175.15,30.6609]
[1641135564537,4.04438163,175.21,175.18,4.04438163]
[1641135565039,2.77297001,175.23,175.16,1.27140738]
[1641135565738,4.04435053,175.21,175.18,4.04435053]
[1641135566840,4.04436136,175.2,175.16,1.27140738]
[1641135567043,4.04436136,175.2,175.18,3.0]
[1641135567239,6.136e-05,175.2,175.18,3.0]
[1641135567644,27.66479,175.25,175.19,13.40451612]
[1641135568341,42.10249346,175.27,175.19,13.40451612]
[1641135568543,29.9466,175.27,175.2,12.13034306]
[1641135569846,29.9466,175.27,175.2,1.27417306]
[1641135570246,57.61139,175.27,175.2,1.27417306]
[1641135572751,2.76729055,175.26,175.2,1.27417306]
[1641135573448,57.61139,175.27,175.2,1.27417306]
[1641135574853,2.76721383,175.26,175.2,1.27417306]
[1641135575955,7.42321383,175.26,175.2,1.27417306]
[1641135576958,2.76721383,175.25,175.19,31.242]
[1641135577557,4.656,175.26,175.19,31.242]
[1641135577756,4.656,175.26,175.2,1.26961106]
[1641135578958,4.656,175.26,175.19,31.242]
[1641135579658,2.77737292,175.25,175.2,1.27414893]
[1641135582560,14.93326638,175.26,175.2,1.27414893]
[1641135583260,12.15589346,175.25,175.2,1.27414893]
[1641135583861,2.77737292,175.26,175.16,12.13034306]
[1641135584763,2.77737292,175.26,175.16,19.49132832]
[1641135586662,2.77737292,175.26,175.17,12.13034306]
[1641135586863,2.77737292,175.26,175.17,39.79513306]
[1641135587865,2.77737292,175.26,175.18,1.27414893]
[1641135589865,2.77737292,175.26,175.18,30.92274893]
[1641135591168,2.77737292,175.26,175.19,1.27414893]
[1641135598781,2.77737292,175.26,175.19,19.5031693]
[1641135600783,17.93326638,175.26,175.19,19.5031693]
[1641135601384,17.93326638,175.26,175.19,13.40449199]
[1641135601689,12.15589346,175.24,175.19,1.27414893]
[1641135601885,18.50789346,175.24,175.19,1.27414893]
[1641135602986,30.44216292,175.23,175.16,12.13034306]
[1641135603187,60.87726292,175.23,175.16,12.13034306]
[1641135603887,63.87726292,175.23,175.16,12.13034306]
[1641135604087,2.77737292,175.22,175.16,19.50341906]
[1641135605389,2.77737292,175.22,175.15,19.50341906]
[1641135605990,2.77737292,175.22,175.15,12.13034306]
[1641135606991,14.93326638,175.22,175.14,19.50341906]
[1641135608492,2.77737292,175.22,175.15,12.13034306]
[1641135612300,2.77737292,175.22,175.16,12.13034306]
[1641135612898,2.77737292,175.22,175.16,16.58134306]
[1641135613099,2.77737292,175.22,175.19,3.0]
[1641135613301,7.292e-05,175.22,175.19,3.0]
[1641135613499,12.15589346,175.25,175.19,3.0]
[1641135613699,12.15589346,175.25,175.2,3.0]
[1641135613899,12.15589346,175.27,175.21,3.0]
[1641135614299,12.15589346,175.27,175.22,3.0]
[1641135614901,30.0168,175.29,175.22,15.13034306]
[1641135615102,30.0168,175.29,175.23,27.66479]
[1641135615399,12.15589346,175.3,175.23,30.66479]
[1641135616000,12.15589346,175.3,175.23,27.66479]
[1641135616600,12.15589346,175.31,175.23,39.79513306]
[1641135617001,12.15589346,175.31,175.23,42.79513306]
[1641135617603,12.15589346,175.31,175.23,39.79513306]
[1641135618002,12.15589346,175.31,175.23,42.79513306]
[1641135618203,12.15589346,175.31,175.23,39.79513306]
[1641135621012,12.15589346,175.31,175.23,12.13034306]
[1641135623715,12.15589346,175.3,175.22,41.75524306]
[1641135627421,12.15589346,175.3,175.26,4.05069334]
[1641135628019,12.15589346,175.29,175.25,4.05069334]
[1641135629219,39.82068346,175.29,175.25,4.05069334]
[1641135630522,27.66479,175.29,175.22,29.6249]
[1641135630821,39.81704537,175.29,175.25,4.05075179]
[1641135631521,27.66479,175.29,175.21,12.13034306]
[1641135632223,39.81703735,175.29,175.25,4.05074912]
[1641135632621,27.66479,175.29,175.21,18.2292419]
[1641135633222,39.81710665,175.29,175.25,4.05077222]
[1641135633922,27.66479,175.29,175.21,18.2292419]
[1641135634723,27.66479,175.29,175.26,4.05074307]
[1641135635324,27.66479,175.29,175.22,12.13034306]
[1641135635522,57.30949,175.29,175.22,12.13034306]
[1641135636124,57.30949,175.29,175.25,4.04731927]
[1641135636325,27.66479,175.29,175.25,4.04731927]
[1641135636926,27.66479,175.29,175.21,18.2292419]
[1641135637527,27.66479,175.29,175.25,4.04738527]
[1641135637728,12.15222921,175.3,175.25,4.04738527]
[1641135638228,27.66479,175.27,175.21,18.2292419]
[1641135638832,27.66479,175.27,175.25,4.04738951]
[1641135639530,27.66479,175.27,175.21,18.2292419]
[1641135639730,34.57179,175.27,175.21,18.2292419]
[1641135640130,34.57179,175.27,175.24,4.04748449]
[1641135640731,34.57179,175.27,175.2,41.52044306]
[1641135640930,34.57179,175.27,175.25,4.0474032]
[1641135641533,34.57179,175.27,175.21,18.22411841]
[1641135642032,34.57179,175.27,175.21,12.13034306]
[1641135642233,34.57179,175.27,175.24,4.04742118]
[1641135642832,4.0474164,175.26,175.2,69.18523306]
[1641135643431,34.57179,175.27,175.24,4.0474123]
[1641135644334,34.57179,175.27,175.2,69.18523306]
[1641135644531,4.04740701,175.26,175.2,69.18523306]
[1641135645135,4.04748522,175.25,175.24,4.04748522]
[1641135645936,12.15222921,175.28,175.21,18.22930718]
[1641135646836,4.05090717,175.25,175.24,4.05090717]
[1641135647535,12.15275839,175.28,175.2,69.18523306]
[1641135648443,27.66479,175.29,175.24,4.05092853]
[1641135649036,12.15272297,175.28,175.21,18.22930532]
[1641135649838,46.5225962,175.29,175.25,4.0509354]
[1641135650439,46.5225962,175.29,175.21,18.22930532]
[1641135651137,46.5225962,175.29,175.25,4.05092542]
[1641135651938,46.5225962,175.29,175.21,18.22930532]
[1641135652138,3.0,175.28,175.21,18.22930532]
[1641135652339,46.5225962,175.29,175.21,18.22930532]
[1641135652738,34.36979,175.29,175.21,12.13034306]
[1641135652938,12.15386412,175.27,175.23,4.05128804]
[1641135653338,27.66479,175.26,175.23,4.05128804]
[1641135653540,27.66479,175.26,175.2,29.3901]
[1641135654141,2.77700873,175.25,175.23,4.05134857]
[1641135654843,30.0312,175.27,175.21,4.03996087]
[1641135655340,27.66479,175.26,175.2,29.3901]
[1641135655541,30.43396453,175.26,175.21,1.27079048]
[1641135656141,27.66479,175.26,175.21,4.03998151]
[1641135656740,27.66479,175.26,175.21,1.27078837]
[1641135658043,27.66479,175.26,175.21,4.03996695]
[1641135659349,27.66479,175.26,175.2,29.3901]
[1641135659547,27.66479,175.26,175.21,1.27079878]
[1641135659948,27.66479,175.26,175.21,4.03985385]
[1641135660549,30.0312,175.27,175.21,4.03985385]
[1641135660749,30.0312,175.27,175.21,1.27080167]
[1641135661549,30.43383644,175.26,175.21,4.03984856]
[1641135661949,27.66479,175.26,175.2,29.3901]
[1641135662152,27.66479,175.26,175.22,4.03978901]
[1641135662751,27.66479,175.26,175.2,29.3901]
[1641135663353,27.66479,175.26,175.21,4.03995459]
[1641135663553,27.66479,175.26,175.21,5.31074611]
[1641135664354,27.66479,175.26,175.2,29.3901]
[1641135664355,4.03999734,175.25,175.2,29.3901]
[1641135664952,27.66479,175.26,175.21,5.31073194]
[1641135665853,4.040088,175.25,175.2,29.3901]
[1641135666853,2.77721479,175.25,175.22,4.0515359]
[1641135667554,45.73165412,175.26,175.2,29.3901]
[1641135667753,39.81865412,175.26,175.2,29.3901]
[1641135668157,2.77720303,175.25,175.22,4.05152521]
[1641135668353,8.12520303,175.25,175.22,4.05152521]
[1641135668755,5.348,175.25,175.2,29.3901]
[1641135668958,5.77725158,175.24,175.18,12.13034306]
[1641135669655,3.0,175.24,175.18,12.13034306]
[1641135669957,27.66479,175.21,175.19,4.05212091]
[1641135670255,14.93172242,175.23,175.19,4.05212091]
[1641135671559,10.10903609,175.25,175.16,1.27426261]
[1641135671760,27.66479,175.22,175.2,4.05187986]
[1641135672360,27.66479,175.22,175.16,19.50395681]
[1641135672561,2.77759314,175.21,175.16,19.50395681]
[1641135673062,27.66479,175.22,175.16,19.50395681]
[1641135673264,27.66479,175.22,175.2,4.05186821]
[1641135673761,27.66479,175.22,175.16,19.50395681]
[1641135673961,2.77759002,175.21,175.16,19.50395681]
[1641135674565,27.66479,175.22,175.2,4.05186845]
[1641135675267,27.66479,175.22,175.16,13.40460567]
[1641135675467,27.66479,175.22,175.19,4.04215096]
[1641135675967,8.70548297,175.2,175.16,1.27426261]
[1641135676172,3.0,175.19,175.14,12.13034306]
[1641135676366,5.7062969,175.18,175.14,12.13034306]
[1641135676868,8.7062969,175.18,175.14,12.13034306]
[1641135677169,12.12645287,175.17,175.06,12.13034306]
[1641135677368,42.69265287,175.17,175.07,31.8468]
[1641135677967,27.66479,175.15,175.07,31.8468]
[1641135678168,27.66479,175.15,175.07,43.97714306]
[1641135678568,30.5662,175.17,175.07,43.97714306]
[1641135678769,30.5662,175.17,175.07,52.52614306]
[1641135678970,30.5662,175.17,175.07,49.52614306]
[1641135679170,24.08087345,175.17,175.08,18.21475649]
[1641135679871,24.08087345,175.17,175.09,27.66479]
[1641135683578,55.32958,175.18,175.09,27.66479]
[1641135683776,55.32958,175.18,175.09,39.79513306]
[1641135684479,55.32958,175.18,175.09,27.66479]
[1641135685182,67.45603287,175.18,175.1,18.22825811]
[1641135688686,12.12645287,175.18,175.1,18.22825811]
[1641135689187,12.12645287,175.18,175.1,12.13034306]
[1641135690986,27.66479,175.16,175.1,12.13034306]
[1641135694196,27.66479,175.16,175.11,12.13034306]
[1641135694792,27.66479,175.16,175.1,12.13034306]
[1641135695495,27.66479,175.16,175.08,3.0]
[1641135705410,27.66479,175.16,175.1,12.13034306]
[1641135708418,27.66479,175.16,175.09,12.13034306]
[1641135708919,27.66479,175.16,175.1,12.13034306]
[1641135709620,27.66479,175.16,175.09,12.13034306]
[1641135713823,39.79124287,175.16,175.08,18.22830718]
[1641135714022,42.79124287,175.16,175.08,18.22830718]
[1641135714523,39.79124287,175.16,175.08,18.22830718]
[1641135716624,2.77336335,175.15,175.08,12.13034306]
[1641135716825,2.77336335,175.15,175.08,1.27012816]
[1641135717524,34.76556335,175.15,175.08,1.27012816]
[1641135717925,31.9922,175.15,175.08,1.27012816]
[1641135721727,31.9922,175.15,175.08,6.00912816]
[1641135722228,31.9922,175.15,175.09,1.27012816]
[1641135726237,2.78003598,175.14,175.09,13.40047122]
[1641135728638,2.78003598,175.14,175.09,12.13034306]
[1641135732442,2.78003598,175.14,175.08,19.49847549]
[1641135734345,2.78003598,175.14,175.09,12.13034306]
[1641135736145,2.78003598,175.14,175.13,4.05352667]
[1641135736848,2.78003598,175.15,175.13,4.05352667]
[1641135738551,2.78003598,175.15,175.12,4.05352667]
[1641135739452,27.66479,175.13,175.12,4.05352667]
[1641135739852,27.66479,175.13,175.1,29.8435]
[1641135740053,27.66479,175.13,175.08,12.13034306]
[1641135740455,27.66479,175.13,175.12,4.04906677]
[1641135740672,56.99379,175.16,175.12,4.04906677]
[1641135741256,2.77709313,175.15,175.1,1.2719806]
[1641135741458,27.66479,175.13,175.1,1.2719806]
[1641135741956,27.66479,175.13,175.12,4.04909163]
[1641135742759,56.99379,175.16,175.11,4.04927519]
[1641135743459,2.77723925,175.15,175.09,34.6608]
[1641135744359,56.99379,175.16,175.09,34.6608]
[1641135744659,56.99379,175.16,175.11,4.04918637]
[1641135745164,2.77720057,175.15,175.09,41.0408]
[1641135745760,56.99379,175.16,175.09,41.0408]
[1641135745962,56.99379,175.16,175.12,4.04902876]
[1641135746564,2.78010427,175.15,175.13,4.05349214]
[1641135747661,27.66479,175.16,175.1,1.27338704]
[1641135748664,27.66479,175.16,175.1,4.27338704]
[1641135748863,27.66479,175.16,175.1,1.27338704]
[1641135749067,2.78011402,175.15,175.13,4.05350101]
[1641135749865,27.66479,175.16,175.1,1.27339139]
[1641135750569,2.78000966,175.15,175.13,4.05340614]
[1641135751169,27.66479,175.16,175.09,43.79114306]
[1641135751369,39.82566937,175.16,175.12,4.05362646]
[1641135751971,4.05361589,175.13,175.09,31.6608]
[1641135752572,12.16034833,175.17,175.1,1.27339215]
[1641135753675,27.66479,175.16,175.14,4.05337071]
[1641135754371,2.77997069,175.15,175.13,4.05344919]
[1641135755071,27.66479,175.16,175.1,1.27339215]
[1641135755273,27.66479,175.16,175.14,4.05326891]
[1641135756381,27.66479,175.16,175.1,19.50167502]
[1641135756575,2.77995185,175.15,175.1,19.50167502]
[1641135757075,32.10079,175.16,175.14,4.05327702]
[1641135757876,32.10079,175.16,175.15,4.05323535]
[1641135758275,4.436,175.16,175.15,4.05323535]
[1641135758475,41.72540604,175.2,175.14,4.04752757]
[1641135759376,41.72540604,175.2,175.1,19.50167502]
[1641135759577,27.66479,175.18,175.1,19.50167502]
[1641135759978,27.66479,175.18,175.1,13.40373521]
[1641135760182,2.77586591,175.17,175.13,4.04753936]
[1641135760979,39.82449604,175.18,175.12,4.04772639]
[1641135761983,39.82449604,175.18,175.1,1.27339215]
[1641135762184,2.77589482,175.17,175.14,4.047516]
[1641135762783,27.66479,175.18,175.13,4.04755547]
[1641135763487,2.77594483,175.17,175.1,1.27339215]
[1641135764287,27.66479,175.18,175.14,4.04747667]
[1641135765188,2.77583433,175.17,175.1,19.4930533]
[1641135765389,7.55283433,175.17,175.1,19.4930533]
[1641135765889,4.777,175.17,175.1,19.4930533]
[1641135766091,4.777,175.17,175.14,4.0474681]
[1641135766491,4.777,175.17,175.12,4.04777018]
[1641135766690,2.77617441,175.16,175.12,4.04777018]
[1641135767290,4.777,175.17,175.12,4.04777018]
[1641135767488,4.777,175.17,175.09,30.2895]
[1641135767688,34.9795,175.17,175.09,30.2895]
[1641135768190,34.9795,175.17,175.12,4.04784557]
[1641135768395,2.77625734,175.16,175.12,4.04784557]
[1641135768991,47.13920604,175.17,175.13,4.053507]
[1641135769493,34.9795,175.17,175.09,42.41984306]
[1641135769694,2.77986417,175.16,175.14,4.05327387]
[1641135770393,34.9795,175.17,175.1,19.50169455]
[1641135771191,2.77998162,175.16,175.14,4.05338065]